fUSD/lending_fUSD_20241222
["ID","MTS","AMOUNT","RATE_DAILY","PERIOD"]
[346313093,1734882869878,-10000.0,0.00027314,120]
[346313094,1734882869905,-10000.0,0.00027314,120]
[346313095,1734882869929,-16521.23206176,0.00027314,120]
[346313096,1734882869955,-10000.0,0.00027314,120]
[346313097,1734882869980,-30000.0,0.00027314,120]
[346313098,1734882870007,-30000.0,0.00027314,90]
[346313099,1734882870032,-30000.0,0.00027314,60]
[346313100,1734882870057,-10000.0,0.00027314,120]
[346313101,1734882870083,-10000.0,0.00027314,120]
[346313102,1734882870109,-10000.0,0.00027314,120]
[346313103,1734882870135,-10000.0,0.00027314,120]
[346313104,1734882870162,-10000.0,0.00027314,120]
[346313105,1734882870186,-10000.0,0.00027314,120]
[346313106,1734882870212,-10000.0,0.00027314,120]
[346313107,1734882870241,-10000.0,0.00027314,120]
[346313108,1734882870266,-74755.7053282,0.00027314,120]
[346313109,1734882870291,-10000.0,0.00027314,120]
[346313110,1734882870316,-10000.0,0.00027314,120]
[346313111,1734882870341,-76768.999982,0.00027314,120]
[346313112,1734882870367,-100000.0,0.00027314,120]
[346313113,1734882870392,-48344.57984995,0.00027314,120]
[346313114,1734882870417,-74069.29779681,0.00027314,120]
[346313115,1734882870441,-66183.25424574,0.00027314,120]
[346313116,1734882870466,-10000.0,0.00027314,120]
[346313117,1734882870492,-152633.0376112,0.00027314,120]
[346313118,1734882870518,-151428.20622982,0.00027314,120]
[346313119,1734882870542,-21314.0,0.00027314,120]
[346313120,1734882870567,-10000.0,0.00027314,120]
[346313121,1734882870592,-3218.39984761,0.00027314,120]
[346313122,1734882870618,-10000.0,0.00027314,120]
[346313123,1734882870644,-10000.0,0.00027314,120]
[346313124,1734882870669,-23285.0,0.00027314,120]
[346313125,1734882870695,-10000.0,0.00027314,120]
[346313126,1734882870720,-10000.0,0.00027314,120]
[346313127,1734882870752,-10000.0,0.00027314,120]
[346313128,1734882870777,-10000.0,0.00027314,120]
[346313129,1734882870804,-104860.49781765,0.00027314,120]
[346313130,1734882870830,-10000.0,0.00027314,120]
[346313131,1734882870855,-3666.0,0.00027314,120]
[346313132,1734882870881,-1510.0,0.00027314,120]
[346313133,1734882870907,-4900.0,0.00027314,120]
[346313134,1734882871077,-10000.0,0.00027314,120]
[346313135,1734882871103,-10000.0,0.00027314,120]
[346313136,1734882871129,-10000.0,0.00027314,120]
[346313137,1734882871156,-64709.76432082,0.00027314,120]
[346313138,1734882871189,-10000.0,0.00027314,120]
[346313139,1734882871216,-103555.88662527,0.00027314,120]
[346313140,1734882871243,-35639.56410872,0.00027314,120]
[346313141,1734882871270,-10000.0,0.00027314,120]
[346313142,1734882871295,-251124.59183068,0.00027314,90]
[346313143,1734882871322,-162066.69991657,0.00027314,91]
[346313144,1734882871347,-178577.59884071,0.00027314,120]
[346313145,1734882871372,-526476.54968681,0.00027314,120]
[346313146,1734882871398,-316988.37221767,0.00027314,120]
[346313147,1734882871424,-223448.75927768,0.00027314,120]
[346313148,1734882871450,-246604.2602245,0.00027314,120]
[346313149,1734882871475,-28648.05595897,0.00027314,120]
[346313150,1734882871501,-26160.48664935,0.00027314,120]
[346313151,1734882871526,-247600.53841846,0.00027314,120]
[346313152,1734882871551,-64777.3264551,0.00027314,120]
[346313153,1734882877557,-448458.77003724,0.00027314,120]
[346313154,1734882877582,-147110.8331487,0.00027314,120]
[346313155,1734882877607,-379845.94685142,0.00027314,120]
[346313156,1734882877631,-115304.29018299,0.00027314,60]
[346313157,1734882877656,-217264.73972836,0.00027314,120]
[346313158,1734882877681,-10000.0,0.00027314,120]
[346313159,1734882877706,-10000.0,0.00027314,120]
[346313160,1734882877731,-20704.42047049,0.00027314,120]
[346313161,1734882877756,-10000.0,0.00027314,120]
[346313162,1734882877781,-700.0,0.00027314,120]
[346313163,1734882877805,-10000.0,0.00027314,120]
[346313164,1734882877830,-2008.59810451,0.00027314,120]
[346313165,1734882877855,-10000.0,0.00027314,120]
[346313166,1734882877878,-158.948483,0.00027314,40]
[346313167,1734882877902,-158.948483,0.00027314,40]
[346313168,1734882877927,-1120535.39277928,0.00027314,120]
[346313169,1734882877951,-10000.0,0.00027314,120]
[346313170,1734882877978,-1000.0,0.00027314,60]
[346313171,1734882878007,-1000.0,0.00027314,60]
[346313172,1734882878031,-1000.0,0.00027314,60]
[346313173,1734882878055,-1000.0,0.00027314,60]
[346313174,1734882878080,-1000.0,0.00027314,60]
[346313175,1734882878105,-3000.0,0.00027314,120]
[346313176,1734882878129,-1468.2946076,0.00027314,120]
[346313177,1734882878153,-3000.0,0.00027314,120]
[346313178,1734882994931,150.89083964,0.0001,2]
[346313179,1734883203785,150.87130879,0.0001,2]
[346313181,1734883652253,160.81,0.00010137,2]
[346313182,1734883694695,33000.0,0.00015,60]
[346313192,1734883831662,-163.15795996,0.00015,7]
[346313193,1734883831672,-405.02194882,0.00016227,2]
[346313194,1734883831715,-687.27805118,0.00016227,2]
[346313195,1734883831725,-196.99570568,0.00017152,2]
[346313196,1734883831734,-699.62836697,0.00017186,2]
[346313197,1734883831743,-699.62836695,0.00017252,2]
[346313198,1734883831753,-250.0,0.00017262,2]
[346313199,1734883831763,-250.0,0.0001731,2]
[346313200,1734883831772,-26807.48,0.00017326,2]
[346313201,1734883831781,-150.0,0.00017352,2]
[346313202,1734883831790,-176.54,0.00017386,2]
[346313203,1734883831800,-1051.31,0.00017393,2]
[346313204,1734883831810,-4820.62,0.000174,2]
[346313205,1734883831819,-171.01,0.00017406,2]
[346313206,1734883831828,-164.47,0.00017416,2]
[346313207,1734883831838,-196.3,0.00017426,2]
[346313208,1734883831847,-200.0,0.00017437,2]
[346313209,1734883831856,-722.63,0.00017471,2]
[346313210,1734883831866,-150.99,0.00017471,2]
[346313211,1734883831875,-1120.21,0.00017471,2]
[346313212,1734883831885,-694.28,0.00017471,2]
[346313213,1734883831894,-9634.48,0.00017471,2]
[346313214,1734883831904,-299.99,0.00017471,4]
[346313215,1734883831913,-351.5,0.00017471,2]
[346313216,1734883831923,-150.99,0.00017471,2]
[346313217,1734883831932,-1000.0,0.00017471,2]
[346313218,1734883831941,-196.99570568,0.00017818,2]
[346313219,1734883831950,-2032.394,0.00017823,2]
[346313220,1734883831960,-628.61,0.00017918,2]
[346313221,1734883831970,-23900.0,0.00017918,2]
[346313222,1734883831980,-628.61,0.00017923,2]
[346313223,1734883831989,-628.61,0.00017928,2]
[346313224,1734883831999,-628.61,0.00017933,2]
[346313225,1734883832008,-628.61,0.00017937,2]
[346313226,1734883832018,-628.61,0.00017942,2]
[346313227,1734883832027,-628.61,0.00017947,2]
[346313228,1734883832036,-628.61,0.00017951,2]
[346313229,1734883832048,-2751.0,0.00017953,2]
[346313230,1734883832058,-250.0,0.00017953,2]
[346313231,1734883832067,-628.61,0.00017956,2]
[346313232,1734883832076,-628.61,0.00017961,2]
[346313233,1734883832085,-628.61,0.00017966,2]
[346313234,1734883832094,-628.61,0.0001797,2]
[346313235,1734883832103,-628.61,0.00017975,2]
[346313236,1734883832112,-628.61,0.0001798,2]
[346313237,1734883832121,-162.72,0.00017982,2]
[346313238,1734883832129,-628.61,0.00017984,2]
[346313239,1734883832138,-2549.1,0.00017987,2]
[346313240,1734883832147,-199.01081127,0.00017989,2]
[346313241,1734883832160,-429.59918873,0.00017989,2]
[346313242,1734883832168,-628.61,0.00017994,2]
[346313243,1734883832177,-628.61,0.00017999,2]
[346313244,1734883832186,-628.61,0.00018003,2]
[346313245,1734883832195,-628.61,0.00018008,2]
[346313246,1734883832203,-738.27,0.0001805,2]
[346313247,1734883832212,-161.84,0.00018261,30]
[346313248,1734883832221,-507.1,0.00018347,2]
[346313249,1734883832231,-499.48,0.00018347,2]
[346313250,1734883832240,-75.88561238,0.00018347,2]
[346313251,1734883832259,-416.44438762,0.00018347,2]
[346313252,1734883832270,-496.08,0.00018347,2]
[346313253,1734883832279,-501.26,0.00018347,2]
[346313254,1734883832289,-497.48,0.00018347,2]
[346313255,1734883832298,-497.31,0.00018347,2]
[346313256,1734883832307,-901.6,0.00018347,2]
[346313258,1734883832316,-1092.3,0.00018491,2]
[346313260,1734883832324,-495.14,0.00018621,2]
[346313262,1734883832333,-265.0282,0.00018654,2]
[346313264,1734883832342,-496.14,0.00018731,2]
[346313266,1734883832351,-493.1,0.00018741,2]
[346313268,1734883832360,-507.85,0.00018754,2]
[346313270,1734883832368,-494.11,0.00018782,2]
[346313272,1734883832377,-494.88,0.00018837,2]
[346313273,1734883832386,-505.37,0.00018883,2]
[346313274,1734883832395,-737.1828589,0.000189,2]
[346313275,1734883832404,-501.19,0.00018952,2]
[346313276,1734883832412,-4951.6813,0.00018978,2]
[346313277,1734883832421,-10000.0,0.00019,2]
[346313278,1734883832430,-300.0,0.00019014,2]
[346313279,1734883832438,-499.87,0.00019025,2]
[346313280,1734883832447,-495.53,0.00019057,2]
[346313281,1734883832457,-737.1828589,0.00019078,2]
[346313292,1734883832643,-1000.0,0.00019078,2]
[346313294,1734883832653,-2500.0,0.00019078,2]
[346313296,1734883832661,-5000.0,0.00019078,2]
[346313297,1734883832671,-150.0,0.00019177,2]
[346313298,1734883832680,-221.65636441,0.00019178,2]
[346313299,1734883832689,-500.0,0.00019178,2]
[346313300,1734883832698,-500.0,0.00019178,2]
[346313301,1734883832707,-500.0,0.00019178,2]
[346313302,1734883832716,-500.0,0.00019178,2]
[346313303,1734883832726,-500.0,0.00019178,2]
[346313304,1734883832735,-500.0,0.00019178,2]
[346313305,1734883832744,-500.0,0.00019178,2]
[346313306,1734883832754,-500.0,0.00019178,2]
[346313307,1734883832763,-337.02945705,0.00019178,2]
[346313309,1734883832772,-500.0,0.00019178,2]
[346313311,1734883832781,-500.0,0.00019178,2]
[346313313,1734883832790,-500.0,0.00019178,2]
[346313315,1734883832801,-500.0,0.00019178,2]
[346313317,1734883832810,-500.0,0.00019178,2]
[346313319,1734883832820,-500.0,0.00019178,2]
[346313321,1734883832829,-500.0,0.00019178,2]
[346313323,1734883832838,-500.0,0.00019178,2]
[346313325,1734883832847,-500.0,0.00019178,2]
[346313327,1734883832856,-500.0,0.00019178,2]
[346313329,1734883832865,-228.42,0.00019178,2]
[346313331,1734883832874,-500.0,0.00019178,2]
[346313333,1734883832883,-500.0,0.00019178,2]
[346313335,1734883832893,-500.0,0.00019178,2]
[346313337,1734883832902,-500.0,0.00019178,2]
[346313339,1734883832911,-500.0,0.00019178,2]
[346313341,1734883832920,-500.0,0.00019178,2]
[346313343,1734883832929,-500.0,0.00019178,2]
[346313345,1734883832938,-500.0,0.00019178,2]
[346313347,1734883832948,-500.0,0.00019178,2]
[346313348,1734883832958,-500.0,0.00019178,2]
[346313349,1734883832967,-500.0,0.00019178,2]
[346313350,1734883832976,-500.0,0.00019178,2]
[346313351,1734883832985,-500.0,0.00019178,2]
[346313352,1734883832994,-500.0,0.00019178,2]
[346313353,1734883833003,-2026.15,0.00019178,2]
[346313354,1734883833013,-500.0,0.00019178,2]
[346313355,1734883833022,-500.0,0.00019178,2]
[346313356,1734883833031,-500.0,0.00019178,2]
[346313357,1734883833041,-500.0,0.00019178,2]
[346313358,1734883833050,-500.8462518,0.00019178,2]
[346313359,1734883833060,-500.0,0.00019178,2]
[346313360,1734883833070,-507.38006002,0.00019178,2]
[346313361,1734883833079,-500.0,0.00019178,2]
[346313362,1734883833089,-523.28,0.00019178,2]
[346313363,1734883833098,-500.0,0.00019178,2]
[346313364,1734883833107,-244.96768433,0.00019178,2]
[346313365,1734883833116,-500.0,0.00019178,2]
[346313366,1734883833126,-500.0,0.00019178,2]
[346313367,1734883833135,-500.0,0.00019178,2]
[346313368,1734883833144,-369.03708655,0.00019178,2]
[346313369,1734883833154,-500.0,0.00019178,2]
[346313370,1734883833163,-500.0,0.00019178,2]
[346313371,1734883833173,-608.14,0.00019178,2]
[346313372,1734883833182,-500.0,0.00019178,2]
[346313373,1734883833191,-500.0,0.00019178,2]
[346313374,1734883833200,-500.0,0.00019178,2]
[346313375,1734883833210,-500.0,0.00019178,2]
[346313376,1734883833220,-500.0,0.00019178,2]
[346313377,1734883833229,-500.0,0.00019178,2]
[346313378,1734883833238,-500.0,0.00019178,2]
[346313379,1734883833247,-500.0,0.00019178,2]
[346313380,1734883833257,-500.0,0.00019178,2]
[346313381,1734883833270,-500.0,0.00019178,2]
[346313382,1734883833279,-202.52,0.00019178,2]
[346313383,1734883833288,-500.0,0.00019178,2]
[346313384,1734883833298,-500.0,0.00019178,2]
[346313385,1734883833313,-500.0,0.00019178,2]
[346313386,1734883833323,-500.0,0.00019178,2]
[346313387,1734883833332,-500.0,0.00019178,2]
[346313388,1734883833342,-500.0,0.00019178,2]
[346313389,1734883833351,-500.0,0.00019178,2]
[346313390,1734883833360,-500.0,0.00019178,2]
[346313391,1734883833369,-500.0,0.00019178,2]
[346313392,1734883833379,-500.0,0.00019178,2]
[346313393,1734883833388,-781.96,0.00019178,2]
[346313394,1734883833397,-500.0,0.00019178,2]
[346313395,1734883833407,-205.33956672,0.00019178,2]
[346313396,1734883833416,-500.0,0.00019178,2]
[346313397,1734883833426,-500.0,0.00019178,2]
[346313398,1734883833435,-500.0,0.00019178,2]
[346313399,1734883833445,-500.0,0.00019178,2]
[346313400,1734883833454,-500.0,0.00019178,2]
[346313401,1734883833467,-359.04546174,0.00019178,2]
[346313402,1734883833476,-500.0,0.00019178,2]
[346313403,1734883833485,-500.0,0.00019178,2]
[346313404,1734883833494,-526.13035643,0.00019178,2]
[346313405,1734883833503,-500.0,0.00019178,2]
[346313406,1734883833513,-500.0,0.00019178,2]
[346313407,1734883833523,-500.0,0.00019178,2]
[346313408,1734883833532,-500.0,0.00019178,2]
[346313409,1734883833542,-500.0,0.00019178,2]
[346313410,1734883833553,-500.0,0.00019178,2]
[346313411,1734883833562,-500.0,0.00019178,2]
[346313412,1734883833571,-500.0,0.00019178,2]
[346313413,1734883833580,-500.0,0.00019178,2]
[346313414,1734883833589,-500.0,0.00019178,2]
[346313415,1734883833598,-500.0,0.00019178,2]
[346313416,1734883833608,-500.0,0.00019178,2]
[346313417,1734883833617,-500.0,0.00019178,2]
[346313418,1734883833626,-500.0,0.00019178,2]
[346313419,1734883833636,-500.0,0.00019178,2]
[346313420,1734883833645,-500.0,0.00019178,2]
[346313421,1734883833654,-500.0,0.00019178,2]
[346313422,1734883833663,-500.0,0.00019178,2]
[346313423,1734883833672,-220.31532024,0.00019178,2]
[346313424,1734883833681,-286.588,0.00019178,2]
[346313425,1734883833690,-500.0,0.00019178,2]
[346313426,1734883833700,-505.81,0.00019178,2]
[346313427,1734883833709,-500.0,0.00019178,2]
[346313428,1734883833718,-500.0,0.00019178,2]
[346313429,1734883833727,-500.0,0.00019178,2]
[346313430,1734883833737,-500.0,0.00019178,2]
[346313431,1734883833747,-422.13349838,0.00019178,2]
[346313432,1734883833756,-500.0,0.00019178,2]
[346313433,1734883833766,-500.0,0.00019178,2]
[346313434,1734883833775,-500.0,0.00019178,2]
[346313435,1734883833784,-500.0,0.00019178,2]
[346313436,1734883833794,-500.0,0.00019178,2]
[346313437,1734883833808,-487.86832324,0.00019178,2]
[346313438,1734883833817,-500.0,0.00019178,2]
[346313439,1734883833826,-334.5,0.00019178,2]
[346313440,1734883833836,-500.0,0.00019178,2]
[346313441,1734883833845,-162.17404563,0.00019178,2]
[346313442,1734883834076,-269.05419048,0.00019178,2]
[346313443,1734883834089,-68.77176389,0.00019178,2]
[346313444,1734883834099,-500.0,0.00019178,2]
[346313445,1734883834111,-315.6298746,0.00019178,2]
[346313446,1734883834134,-0.0901254,0.00019178,2]
[346313447,1734883834146,-500.0,0.00019178,2]
[346313448,1734883834156,-500.0,0.00019178,2]
[346313449,1734883834166,-176.21,0.00019178,2]
[346313450,1734883834177,-500.0,0.00019178,2]
[346313451,1734883834187,-500.0,0.00019178,2]
[346313452,1734883834197,-500.0,0.00019178,2]
[346313453,1734883834207,-500.0,0.00019178,2]
[346313454,1734883834217,-500.0,0.00019178,2]
[346313455,1734883834227,-500.0,0.00019178,2]
[346313456,1734883834237,-500.0,0.00019178,2]
[346313457,1734883834247,-500.0,0.00019178,2]
[346313458,1734883834257,-500.0,0.00019178,2]
[346313459,1734883834267,-500.0,0.00019178,2]
[346313460,1734883834277,-500.0,0.00019178,2]
[346313461,1734883834287,-189.45010826,0.00019178,2]
[346313462,1734883834312,-310.54989174,0.00019178,2]
[346313463,1734883834322,-507.52577324,0.00019178,2]
[346313464,1734883834332,-410.39433502,0.00019178,2]
[346313469,1734883837635,-954.61,0.00019078,2]
[346313470,1734883837646,-8553.22276632,0.00019078,2]
[346313471,1734883837655,-89.60566498,0.00019178,2]
[346313472,1734883837665,-500.0,0.00019178,2]
[346313473,1734883837673,-500.0,0.00019178,2]
[346313474,1734883837682,-189.91361693,0.00019178,2]
[346313475,1734883837691,-157.25795177,0.00019178,2]
[346313476,1734883837739,-342.74204823,0.00019178,2]
[346313477,1734883837748,-500.0,0.00019178,2]
[346313478,1734883837757,-500.0,0.00019178,2]
[346313479,1734883837765,-500.0,0.00019178,2]
[346313480,1734883837774,-500.0,0.00019178,2]
[346313481,1734883837783,-500.0,0.00019178,2]
[346313482,1734883837792,-500.0,0.00019178,2]
[346313483,1734883837801,-658.41,0.00019178,2]
[346313484,1734883837810,-500.0,0.00019178,2]
[346313485,1734883837818,-500.0,0.00019178,2]
[346313486,1734883837828,-500.0,0.00019178,2]
[346313487,1734883837837,-500.0,0.00019178,2]
[346313488,1734883837846,-500.0,0.00019178,2]
[346313489,1734883837855,-500.0,0.00019178,2]
[346313490,1734883837864,-500.0,0.00019178,2]
[346313491,1734883837873,-168.13,0.00019178,2]
[346313492,1734883837882,-500.0,0.00019178,2]
[346313493,1734883837891,-220.43513225,0.00019178,2]
[346313494,1734883837901,-500.0,0.00019178,2]
[346313495,1734883837910,-500.0,0.00019178,2]
[346313496,1734883837919,-500.0,0.00019178,2]
[346313497,1734883837928,-500.0,0.00019178,2]
[346313498,1734883837936,-500.0,0.00019178,2]
[346313499,1734883837946,-500.0,0.00019178,2]
[346313500,1734883837955,-500.0,0.00019178,2]
[346313501,1734883837965,-500.0,0.00019178,2]
[346313502,1734883837974,-500.0,0.00019178,2]
[346313503,1734883837983,-500.0,0.00019178,2]
[346313504,1734883837992,-469.92780426,0.00019178,2]
[346313505,1734883838001,-500.0,0.00019178,2]
[346313506,1734883838010,-500.0,0.00019178,2]
[346313507,1734883838019,-500.0,0.00019178,2]
[346313508,1734883838028,-500.0,0.00019178,2]
[346313509,1734883838038,-500.0,0.00019178,2]
[346313510,1734883838047,-500.0,0.00019178,2]
[346313511,1734883838058,-500.0,0.00019178,2]
[346313512,1734883838067,-500.0,0.00019178,2]
[346313513,1734883838076,-500.0,0.00019178,2]
[346313514,1734883838086,-500.0,0.00019178,2]
[346313515,1734883838095,-500.0,0.00019178,2]
[346313516,1734883838104,-185.52,0.00019178,2]
[346313518,1734883838114,-500.0,0.00019178,2]
[346313520,1734883838123,-500.0,0.00019178,2]
[346313522,1734883838131,-500.0,0.00019178,2]
[346313524,1734883838140,-500.0,0.00019178,2]
[346313526,1734883838150,-500.0,0.00019178,2]
[346313528,1734883838159,-500.0,0.00019178,2]
[346313529,1734883838167,-151.62,0.00019178,2]
[346313531,1734883838176,-500.0,0.00019178,2]
[346313533,1734883838186,-500.0,0.00019178,2]
[346313535,1734883838195,-500.0,0.00019178,2]
[346313538,1734883838204,-834.67,0.00019178,2]
[346313542,1734883838214,-500.0,0.00019178,2]
[346313544,1734883838223,-1605.37,0.00019178,2]
[346313548,1734883838232,-500.0,0.00019178,2]
[346313551,1734883838242,-500.0,0.00019178,2]
[346313554,1734883838251,-500.0,0.00019178,2]
[346313556,1734883838260,-159.44,0.00019178,2]
[346313557,1734883838271,-500.0,0.00019178,2]
[346313561,1734883838280,-500.0,0.00019178,2]
[346313562,1734883838289,-500.0,0.00019178,2]
[346313564,1734883838300,-500.0,0.00019178,2]
[346313566,1734883838311,-500.0,0.00019178,2]
[346313568,1734883838321,-500.0,0.00019178,2]
[346313570,1734883838330,-500.0,0.00019178,2]
[346313572,1734883838339,-500.0,0.00019178,2]
[346313574,1734883838348,-854.49,0.00019178,2]
[346313576,1734883838357,-14449.22,0.00019178,2]
[346313578,1734883838366,-749.15,0.00019178,2]
[346313580,1734883838375,-500.0,0.00019178,2]
[346313582,1734883838384,-500.0,0.00019178,2]
[346313584,1734883838393,-500.0,0.00019178,2]
[346313586,1734883838402,-500.0,0.00019178,2]
[346313588,1734883838411,-500.0,0.00019178,2]
[346313590,1734883838421,-500.0,0.00019178,2]
[346313592,1734883838430,-500.0,0.00019178,2]
[346313594,1734883838439,-213.279385,0.00019178,2]
[346313596,1734883838449,-500.0,0.00019178,2]
[346313598,1734883838458,-904.78,0.00019178,2]
[346313600,1734883838470,-500.0,0.00019178,2]
[346313602,1734883838479,-1141.008481,0.00019178,2]
[346313604,1734883838488,-500.0,0.00019178,2]
[346313606,1734883838497,-1699.74,0.00019178,2]
[346313608,1734883838507,-1911.78,0.00019178,2]
[346313610,1734883838516,-500.0,0.00019178,2]
[346313612,1734883838524,-20179.57,0.00019178,2]
[346313614,1734883838533,-500.0,0.00019178,2]
[346313616,1734883838543,-500.0,0.00019178,2]
[346313618,1734883838555,-899.52,0.00019178,2]
[346313620,1734883838564,-500.0,0.00019178,2]
[346313622,1734883838574,-500.0,0.00019178,2]
[346313624,1734883838583,-508.66,0.00019178,2]
[346313626,1734883838592,-15452.48,0.00019178,2]
[346313628,1734883838601,-867.1,0.00019178,2]
[346313630,1734883838610,-500.0,0.00019178,2]
[346313632,1734883838619,-2021.42,0.00019178,2]
[346313634,1734883838628,-500.0,0.00019178,2]
[346313636,1734883838637,-500.0,0.00019178,2]
[346313638,1734883838646,-500.0,0.00019178,2]
[346313640,1734883838655,-500.0,0.00019178,2]
[346313642,1734883838664,-500.0,0.00019178,2]
[346313644,1734883838673,-500.0,0.00019178,2]
[346313646,1734883838682,-500.0,0.00019178,2]
[346313648,1734883838692,-6229.5,0.00019178,2]
[346313650,1734883838701,-14250.77,0.00019178,2]
[346313652,1734883838710,-500.0,0.00019178,2]
[346313654,1734883838719,-500.0,0.00019178,2]
[346313656,1734883838728,-500.0,0.00019178,2]
[346313658,1734883838737,-2567.68,0.00019178,2]
[346313660,1734883838746,-500.0,0.00019178,2]
[346313662,1734883838755,-500.0,0.00019178,2]
[346313664,1734883838764,-500.0,0.00019178,2]
[346313666,1734883838773,-606.46,0.00019178,2]
[346313668,1734883838782,-500.0,0.00019178,2]
[346313670,1734883838791,-500.0,0.00019178,2]
[346313672,1734883838801,-500.0,0.00019178,2]
[346313674,1734883838810,-4119.7,0.00019178,2]
[346313676,1734883838819,-500.0,0.00019178,2]
[346313678,1734883838828,-500.0,0.00019178,2]
[346313680,1734883838837,-3047.75,0.00019178,2]
[346313682,1734883838846,-500.0,0.00019178,2]
[346313684,1734883838855,-500.0,0.00019178,2]
[346313686,1734883838864,-500.0,0.00019178,2]
[346313688,1734883838873,-2543.32,0.00019178,2]
[346313690,1734883838882,-500.0,0.00019178,2]
[346313692,1734883838891,-500.0,0.00019178,2]
[346313694,1734883838900,-1208.86,0.00019178,2]
[346313696,1734883838910,-500.0,0.00019178,2]
[346313698,1734883838919,-500.0,0.00019178,2]
[346313700,1734883838928,-500.0,0.00019178,2]
[346313702,1734883838937,-500.0,0.00019178,2]
[346313704,1734883838946,-936.83,0.00019178,2]
[346313706,1734883838956,-500.0,0.00019178,2]
[346313708,1734883838965,-865.93,0.00019178,2]
[346313710,1734883838974,-8236.24,0.00019178,2]
[346313712,1734883838983,-500.0,0.00019178,2]
[346313714,1734883838992,-500.0,0.00019178,2]
[346313716,1734883839002,-500.0,0.00019178,2]
[346313718,1734883839011,-500.0,0.00019178,2]
[346313720,1734883839019,-7731.9,0.00019178,2]
[346313722,1734883839028,-500.0,0.00019178,2]
[346313724,1734883839037,-51.59082438,0.00019178,2]
[346313726,1734883839057,-499.81917562,0.00019178,2]
[346313728,1734883839066,-500.0,0.00019178,2]
[346313730,1734883839075,-500.0,0.00019178,2]
[346313732,1734883839084,-500.0,0.00019178,2]
[346313734,1734883839093,-500.0,0.00019178,2]
[346313736,1734883839103,-500.0,0.00019178,2]
[346313738,1734883839112,-500.0,0.00019178,2]
[346313740,1734883839122,-684.89,0.00019178,2]
[346313742,1734883839131,-500.0,0.00019178,2]
[346313744,1734883839140,-1380.81,0.00019178,2]
[346313746,1734883839149,-2295.53,0.00019178,2]
[346313748,1734883839158,-1364.83,0.00019178,2]
[346313750,1734883839167,-2969.47,0.00019178,2]
[346313752,1734883839175,-500.0,0.00019178,2]
[346313754,1734883839184,-500.0,0.00019178,2]
[346313756,1734883839194,-569.85,0.00019178,2]
[346313758,1734883839203,-500.0,0.00019178,2]
[346313760,1734883839211,-214.67120171,0.00019178,2]
[346313762,1734883839220,-888.2,0.00019178,2]
[346313764,1734883839229,-500.0,0.00019178,2]
[346313766,1734883839238,-532.57,0.00019178,2]
[346313768,1734883839247,-500.0,0.00019178,2]
[346313770,1734883839256,-500.0,0.00019178,2]
[346313772,1734883839267,-500.0,0.00019178,2]
[346313774,1734883839277,-500.0,0.00019178,2]
[346313776,1734883839287,-500.0,0.00019178,2]
[346313778,1734883839295,-1950.08,0.00019178,2]
[346313780,1734883839308,-650.01,0.00019178,2]
[346313803,1734883839489,-1561.96,0.00019178,2]